[Event "Reykjavik Open 2022"]
[Site "Reykjavik"]
[Date "2022.04.10"]
[Round "7.22"]
[White "Grieve, Harry"]
[Black "Coursaget, Nicolas"]
[Result "1-0"]
[ECO "B03"]
[WhiteElo "2384"]
[BlackElo "2185"]
[Annotator "TA"]
[PlyCount "71"]
[EventDate "2022.04.06"]
[EventCountry "ISL"]
[SourceTitle "playchess.com"]
[Source "ChessBase"]
[SourceQuality "1"]
[TimeControl "40/5400+30:1800+30"]

{[%evp 18,71,107,98,108,92,98,75,136,104,107,119,122,121,122,126,141,149,108,129,226,168,338,253,235,242,462,464,417,428,458,449,447,283,255,150,158,164,174,175,174,106,103,114,137,104,383,12,537,479,941,934,29993,29994,29994,386]} 1. e4 {[%emt 0:00:06][%cal Be2e4,Be4e5][%mdl 32]} Nf6 {[%emt 0:00:10]} 2. e5 {[%emt 0:00:13]} Nd5 {[%emt 0:00:02]} 3. d4 {[%emt 0:00:05]} d6 {[%emt 0:00:10]} 4. c4 {[%emt 0:00:04][%cal Bc2c4,Bc4d5,Bd5d6][%mdl 32]} Nb6 {[%emt 0:00:07]} 5. f4 {[%emt 0:00:06]} dxe5 {[%emt 0:00:37]} 6. fxe5 {[%emt 0:00:05]} c5 {[%emt 0:00:19]} 7. d5 {[%emt 0:00:25]} e6 {[%emt 0:00:08]} 8. Nc3 {[%emt 0:00:09]} exd5 {[%emt 0:00:52]} 9. cxd5 {[%emt 0:00:05]} c4 {[%emt 0:00:14]} 10. d6 {[%emt 0:00:04]} Nc6 {[%emt 0:01:20] B03: Alekhine's Defence: Four Pawns Attack.} 11. Nf3 {[%emt 0:02:50]} Bg4 {[%emt 0:08:23]} 12. Bf4 {[%emt 0:00:20] Threatens to win with Be2.} g5 {[%emt 0:06:39]} (12... Qd7 $142) 13. Bg3 {[%emt 0:00:21]} (13. Bxg5 $6 Qxg5 14. Nxg5 Bxd1 15. Rxd1 Nxe5 $11) 13... Bg7 {[%emt 0:00:55][%cal Oc6e5]} 14. Be2 {[%emt 0:13:49][%cal Bf1e2,Be2f3,Bf3e4][%mdl 32]} O-O {[%emt 0:06:28]} 15. O-O {[%emt 0:00:05] [#]} Nd7 $146 {[%emt 0:24:18]} ({Predecessor:} 15... Rb8 16. Nd5 Bxf3 17. Bxf3 Nxe5 18. Ne7+ Kh8 19. Be4 g4 20. Kh1 Nbd7 21. Rf5 Ng6 {1-0 (41) Braig,M-Schmitt,T Germany 1994}) 16. Kh1 $1 {[%emt 0:15:30]} Bxf3 {[%emt 0:09:17]} 17. Bxf3 {[%emt 0:00:07]} Ndxe5 {[%emt 0:00:29]} 18. Be4 {[%emt 0:00:30]} Qb6 {[%emt 0:10:51]} (18... h6 $16) 19. Qe2 {[%emt 0:24:25]} f5 $2 {[%emt 0:15:52]} (19... Rae8 {is a better defense.} 20. Rad1 (20. Qh5 h6 $14) 20... Qd8) 20. Rxf5 {[%emt 0:14:52]} (20. Bxc6 Qxc6 21. Bxe5 Rae8 $15) 20... Rxf5 {[%emt 0:03:16]} 21. Bxf5 {[%emt 0:00:02] This bishop pair is nice.} Nd4 $2 {[%emt 0:00:26] [#]} (21... Rf8) 22. Bxh7+ $1 $18 {[%emt 0:04:25][%mdl 512]} Kxh7 {[%emt 0:00:18]} 23. Qh5+ {[%emt 0:00:05]} Kg8 {[%emt 0:00:17]} 24. Bxe5 {[%emt 0:00:13]} Bxe5 {[%emt 0:00:14]} 25. Ne4 {[%emt 0:06:04]} Qxb2 {[%emt 0:07:02]} 26. Qg6+ {[%emt 0:08:43]} ({White should try} 26. Re1 $18 {Qg6+ would kill now.} Rf8 27. d7 (27. Qg6+ $2 Bg7 $19)) 26... Bg7 $16 {[%emt 0:00:47][%cal Rb2a1]} (26... Kh8 $2 27. Re1 Rf8 28. Nxg5 $18) 27. Nf6+ $1 {[%emt 0:00:01][%mdl 1024] White has strong compensation.} ({Don't go for} 27. Rf1 $2 Rf8 28. Rd1 Qe2 $1 $19) 27... Kf8 {[%emt 0:00:42] [#]} 28. Re1 $40 {[%emt 0:01:02][%mdl 128] Intending Re8+ and mate. White is out for blood. Really sharp!} Ne2 {[%emt 0:03:07]} (28... Bxf6 $2 29. Qxf6+ Kg8 30. d7 $18) 29. Nd7+ {[%emt 0:01:46]} (29. Nh7+ $18 Kg8 30. Nxg5) 29... Kg8 {[%emt 0:00:07] aiming for ...Nf4.} 30. Qe6+ {[%emt 0:00:02]} Kh8 {[%emt 0:00:18] Hoping for ...Nf4.} 31. Rxe2 {[%emt 0:00:16]} Qd4 {[%emt 0:00:59][%mdl 8192]} (31... Qc1+ $16 32. Re1 Qf4) 32. Re4 $2 {[%emt 0:01:10]} (32. h3 $18) 32... Qd3 {[%emt 0:00:36][%mdl 8192]} (32... Qf2 $1 $11 {and Black has nothing to worry.} 33. Qxc4 b5) 33. Re1 {[%emt 0:02:05] Nc5 is the strong threat. Active counter play!} c3 {[%emt 0:00:43]} (33... Qd2 $142 34. Nf6 Qxe1+ 35. Qxe1 Bxf6) 34. Ne5 $18 {[%emt 0:00:51]} Qd4 {[%emt 0:00:40]} 35. Nf7+ {[%emt 0:00:25]} ({Weaker is} 35. Ng6+ Kh7 36. Ne7 Qd3 $18) 35... Kh7 {[%emt 0:00:35]} 36. Nxg5+ {[%emt 0:00:03] Weighted Error Value: White=0.35/Black=0.87} 1-0

[Event "Reykjavik Open 2022"]
[Site "Reykjavik"]
[Date "2022.04.10"]
[Round "7.23"]
[White "Player, Edmund C"]
[Black "Fantinel, Thibault"]
[Result "0-1"]
[ECO "B22"]
[WhiteElo "2196"]
[BlackElo "2376"]
[Annotator "TA"]
[PlyCount "76"]
[EventDate "2022.04.06"]
[EventCountry "ISL"]
[SourceTitle "playchess.com"]
[Source "ChessBase"]
[SourceQuality "1"]
[TimeControl "40/5400+30:1800+30"]

{[%evp 13,76,9,6,0,0,-3,-3,-70,-66,-68,-78,-75,-81,-53,-18,-45,0,-16,108,104,115,117,289,294,314,331,321,329,320,316,282,265,306,215,212,186,221,231,231,229,208,218,218,31,33,17,32,32,16,5,4,0,0,0,0,-22,-5,-323,-329,-320,-318,-29993,-29994,-29994,-29995]} 1. e4 {[%emt 0:00:02]} c5 {[%emt 0:00:05]} 2. Nf3 {[%emt 0:00:05]} e6 {[%emt 0:00:06]} 3. c3 {[%emt 0:00:14]} Nf6 {[%emt 0:00:30]} 4. e5 {[%emt 0:00:34]} Nd5 {[%emt 0:00:05]} 5. d4 {[%emt 0:00:07]} cxd4 {[%emt 0:00:05]} 6. cxd4 {[%emt 0:00:03]} d6 {[%emt 0:00:12]} 7. Bc4 {[%emt 0:00:50]} Be7 {[%emt 0:00:16]} 8. Bd2 {[%emt 0:06:19] B22: Sicilian: 2 c3.} O-O {[%emt 0:04:33]} 9. Nc3 {[%emt 0:01:49]} dxe5 {[%emt 0:03:46] [#]} 10. Nxe5 $146 {[%emt 0:06:36]} (10. dxe5 $11 Nxc3 11. Bxc3) ({Predecessor:} 10. dxe5 Nxc3 11. Bxc3 b6 12. Qe2 Bb7 13. O-O Nd7 14. Rfd1 Qc7 15. Bd3 Rfd8 16. Rac1 {½-½ (37) Tryggestad,A (2316)-Nguyen,G (1968) Drammen 2017}) 10... Nb6 $15 {[%emt 0:03:53]} 11. Bb3 {[%emt 0:22:40]} Qxd4 {[%emt 0:01:13]} 12. Qe2 {[%emt 0:01:35]} Nc6 {[%emt 0:11:33]} 13. Nf3 {[%emt 0:07:13]} Qd8 {[%emt 0:01:45]} 14. Rd1 {[%emt 0:06:14]} Qc7 {[%emt 0:16:59]} 15. O-O {[%emt 0:14:45]} e5 {[%emt 0:01:41]} (15... a6 $11) 16. Nb5 $16 {[%emt 0:08:43]} Qb8 {[%emt 0:00:27]} 17. Bg5 $1 {[%emt 0:00:48] Strongly threatening Bxe7.} Re8 {[%emt 0:13:47]} (17... Be6 $16 {was called for.}) 18. Bxe7 $18 {[%emt 0:04:14]} Rxe7 {[%emt 0:00:05]} 19. Ng5 {[%emt 0:01:21] Qh5 is the strong threat.} Be6 {[%emt 0:04:35]} 20. Qe4 $1 {[%emt 0:03:16]} g6 {[%emt 0:03:01]} 21. Qh4 $1 {[%emt 0:01:46]} h5 {[%emt 0:00:10]} 22. Nxe6 {[%emt 0:03:15]} fxe6 {[%emt 0:00:02]} 23. Rd6 {[%emt 0:02:14]} Qf8 {[%emt 0:05:02]} 24. f4 {[%emt 0:02:39]} (24. Rxe6 Rxe6 25. Bxe6+ Kg7 $11) 24... exf4 {[%emt 0:04:31]} 25. Rxf4 {[%emt 0:01:56]} (25. Bxe6+ Kg7) (25. Rxe6 Rxe6 26. Nc7 (26. Bxe6+ Kg7 $11) 26... Nd4 27. Nxe6 Nxe6 28. Bxe6+ Kg7 $11) 25... Qg7 {[%emt 0:00:04]} 26. Rxe6 {[%emt 0:01:14]} ({Don't take} 26. Bxe6+ Kh8) 26... Rxe6 {[%emt 0:00:11]} 27. Bxe6+ {[%emt 0:00:02]} Kh8 {[%emt 0:00:03]} 28. Rf7 $2 {[%emt 0:02:14]} (28. Nd6 $1 $18 {[%cal Rd6f5]} Qe7 29. Qxe7 Nxe7 30. Rf7 (30. Nxb7 Rb8 $16)) 28... Qe5 $14 {[%emt 0:00:28]} ({Much less strong is} 28... Qxb2 29. Qg5 Qa1+ 30. Kf2 Qb2+ 31. Kg1 Qa1+ 32. Kf2 Qb2+ 33. Kg3 Qe5+ 34. Qxe5+ Nxe5 35. Rxb7 $16) 29. Qf6+ {[%emt 0:01:22]} Qxf6 {[%emt 0:00:05]} 30. Rxf6 {[%emt 0:00:01]} Ne5 {[%emt 0:03:48]} 31. Rf2 {[%emt 0:01:14]} Re8 {[%emt 0:02:53]} 32. Bb3 {[%emt 0:00:17]} Ng4 {[%emt 0:01:11]} 33. Rf1 {[%emt 0:00:13]} Re2 {[%emt 0:00:50]} 34. h3 {[%emt 0:01:01]} Ne3 {[%emt 0:00:16]} 35. Rf2 {[%emt 0:00:18][%mdl 8192]} (35. Rf8+ $11 Kg7 36. Rf3 Rxg2+ 37. Kh1) 35... Re1+ $19 {[%emt 0:00:19]} 36. Kh2 {[%emt 0:00:02]} Nf1+ {[%emt 0:00:15] Pair of Knights!} 37. Kg1 $2 {[%emt 0:00:05] [#]} (37. Rxf1 $19 Rxf1 38. Kg3) 37... Ng3+ $1 {[%emt 0:00:17]} 38. Kh2 {[%emt 0:00:03] [#]} h4 $1 {[%emt 0:00:12] What a bad dream for White.  Weighted Error Value: White=0.48/Black=0.17 (very precise)} 0-1

[Event "Reykjavik Open 2022"]
[Site "Reykjavik"]
[Date "2022.04.10"]
[Round "7.24"]
[White "Mai, Alexander Oliver"]
[Black "Vardaan Nagpal"]
[Result "1/2-1/2"]
[ECO "C49"]
[WhiteElo "2207"]
[BlackElo "2378"]
[Annotator "TA"]
[PlyCount "108"]
[EventDate "2022.04.06"]
[EventCountry "ISL"]
[SourceTitle "playchess.com"]
[Source "ChessBase"]
[SourceQuality "1"]
[TimeControl "40/5400+30:1800+30"]

{[%evp 16,108,10,9,62,47,54,42,39,38,36,20,55,24,28,15,51,19,52,37,34,11,13,13,15,8,43,50,41,47,88,35,42,31,62,-16,-16,-16,-16,-10,0,-17,0,0,6,5,13,17,31,0,0,0,0,0,0,0,0,0,0,0,0,0,0,0,0,0,0,0,0,0,0,0,0,0,0,0,0,-7,0,0,0,0,0,0,0,0,0,0,0,0,0,0,0,0,0]} 1. e4 {[%emt 0:00:03]} e5 {[%emt 0:00:06]} 2. Nf3 {[%emt 0:00:05]} Nf6 {[%emt 0:00:05]} 3. Nc3 {[%emt 0:00:05]} Nc6 {[%emt 0:00:05]} 4. Bb5 {[%emt 0:00:06]} Bb4 {[%emt 0:05:19]} 5. O-O {[%emt 0:00:09]} O-O {[%emt 0:00:03]} 6. d3 {[%emt 0:00:04][%cal Bd2d3,Bd3d4][%mdl 32]} Bxc3 {[%emt 0:00:05]} 7. bxc3 {[%emt 0:00:05]} d6 {[%emt 0:00:05]} 8. Bg5 {[%emt 0:00:37]} h6 {[%emt 0:02:10]} 9. Bh4 {[%emt 0:00:53]} Ne7 {[%emt 0:00:30] C49: Four Knights: 4 Bb5 Bb4.} (9... a6 $11 10. Bxc6 bxc6) 10. Bxf6 $14 {[%emt 0:01:36]} gxf6 {[%emt 0:00:06]} 11. d4 {[%emt 0:00:24]} (11. Nh4 {feels hotter.} Kh7 12. Qh5 Ng6 13. Nf5) 11... Ng6 {[%emt 0:06:16] White is slightly better.} 12. Qd2 {[%emt 0:03:28]} Kh7 {[%emt 0:00:19]} 13. Bd3 {[%emt 0:02:11] [#]} c5 $146 {[%emt 0:06:35]} ({Predecessor:} 13... Bg4 14. Ne1 Rg8 15. Kh1 Nf4 16. g3 Nxd3 17. Qxd3 Qd7 18. Nf3 Qc6 19. Nd2 Rae8 {1-0 (39) Troemer,F (1461)-Rogasch,M (1747) Mecklenburg VP 2014}) 14. d5 {[%emt 0:09:41]} Rg8 {[%emt 0:07:38]} 15. Kh1 {[%emt 0:00:55]} Bd7 {[%emt 0:02:32]} (15... Nf4 {seems wilder.} 16. g3 Bh3 17. Rg1 Nxd3 18. cxd3 f5) 16. c4 {[%emt 0:02:13]} Qc8 {[%emt 0:01:03]} 17. Rab1 {[%emt 0:03:59]} b6 {[%emt 0:00:23]} 18. Rfe1 {[%emt 0:07:56]} f5 {[%emt 0:01:27]} 19. exf5 {[%emt 0:00:51]} Bxf5 {[%emt 0:00:04]} 20. g3 {[%emt 0:02:34]} Qd7 {[%emt 0:03:08]} 21. Bxf5 {[%emt 0:04:06]} Qxf5 {[%emt 0:00:03]} 22. Qd3 {[%emt 0:01:10]} Qf6 {[%emt 0:08:23]} 23. Nh4 {[%emt 0:02:39]} (23. a4 $16) 23... Kh8 {[%emt 0:00:26][%cal Bh7h8,Bh8g7,Bg7f6][%mdl 32]} (23... Qxf2 $2 24. Rf1 e4 25. Qxe4 $18 (25. Rxf2 exd3 26. cxd3 Nxh4 $14)) 24. Qf5 {[%emt 0:03:43]} Kg7 {[%emt 0:00:10]} 25. Re4 {[%emt 0:01:24] &Bianco is more active.} ({White should try} 25. Rg1 $14) 25... Nxh4 $11 {[%emt 0:00:37]} 26. Qxf6+ {[%emt 0:00:43]} Kxf6 {[%emt 0:00:03]} 27. Rxh4 {[%emt 0:00:15][%cal Be4h4,Bh4h5,Bh5f5][%mdl 4128] Endgame KRR-KRR} Kg7 {[%emt 0:05:16]} 28. Rh5 {[%emt 0:06:58]} Rab8 {[%emt 0:03:20]} 29. Rb3 {[%emt 0:13:01]} a6 {[%emt 0:04:45]} 30. a4 {[%emt 0:01:43]} Rb7 {[%emt 0:04:31]} 31. Kg2 {[%emt 0:06:04]} f6 {[%emt 0:10:11]} 32. Rf5 {[%emt 0:05:38]} Rgb8 {[%emt 0:00:59] The position is equal.} 33. Rbf3 {[%emt 0:01:34]} Rf7 {[%emt 0:00:06]} 34. g4 {[%emt 0:00:49]} b5 {[%emt 0:00:44]} 35. axb5 {[%emt 0:01:19]} axb5 {[%emt 0:00:05]} 36. cxb5 {[%emt 0:06:34]} Rxb5 {[%emt 0:00:09]} 37. c4 {[%emt 0:02:44]} Rb4 {[%emt 0:01:23]} 38. Rc3 {[%emt 0:00:40]} Ra7 {[%emt 0:01:45]} 39. h3 {[%emt 0:01:30]} Rb1 {[%emt 0:00:58]} 40. Rcf3 {[%emt 0:00:00]} Rf7 {[%emt 0:00:00] [#] aiming for ...Rc1.} 41. Rc3 {[%emt 0:08:18] Inhibits Rc1.} Rd1 {[%emt 0:05:01]} 42. Kg3 {[%emt 0:01:12]} Rd4 {[%emt 0:00:11]} 43. Kh4 {[%emt 0:04:37]} Kg6 {[%emt 0:02:32]} 44. Kg3 {[%emt 0:00:46]} e4 {[%emt 0:05:32]} 45. Kf4 {[%emt 0:14:54]} Rb7 {[%emt 0:01:41]} 46. h4 {[%emt 0:02:30][%cal Bh3h4,Bh4h5][%mdl 32]} Rb2 {[%emt 0:10:49]} 47. h5+ {[%emt 0:01:54]} Kf7 {[%emt 0:00:03]} 48. Ra3 {[%emt 0:04:18]} Rxc4 {[%emt 0:08:27]} 49. Ra7+ {[%emt 0:00:47]} Ke8 {[%emt 0:00:01] [#] ...Rc3 is the strong threat.} 50. Kg3 {[%emt 0:00:32]} Rc3+ {[%emt 0:07:25]} 51. Kg2 {[%emt 0:00:28]} e3 {[%emt 0:00:27]} 52. Rxf6 {[%emt 0:00:20]} Rxf2+ {[%emt 0:00:36]} 53. Rxf2 {[%emt 0:00:02]} exf2 {[%emt 0:00:02]} 54. Kxf2 {[%emt 0:00:35] Hoping for Rh7.} Rd3 {[%emt 0:00:35] Weighted Error Value: White=0.09 (flawless) /Black=0.08 (flawless)} 1/2-1/2

[Event "Reykjavik Open 2022"]
[Site "Reykjavik"]
[Date "2022.04.10"]
[Round "7.25"]
[White "Gupta, Abhijeet"]
[Black "Zysko, Jan"]
[Result "1-0"]
[ECO "E81"]
[WhiteElo "2628"]
[BlackElo "2108"]
[Annotator "TA"]
[PlyCount "141"]
[EventDate "2022.04.06"]
[EventCountry "ISL"]
[SourceTitle "playchess.com"]
[Source "ChessBase"]
[SourceQuality "1"]
[TimeControl "40/5400+30:1800+30"]

{[%evp 12,141,30,27,39,19,20,8,42,-3,47,35,77,18,19,28,14,11,18,-42,0,0,0,-43,28,-62,55,69,77,5,8,0,8,4,52,60,66,47,83,93,92,99,114,95,169,169,201,201,201,196,202,217,175,120,122,119,127,120,200,171,155,124,146,143,140,139,122,128,247,210,212,204,205,200,247,247,247,247,427,322,404,322,402,361,446,424,413,350,340,334,666,616,993,931,29960,29963,29963,29963,29963,29957,29961,29959,29956,29959,29959,29960,29961,29962,29962,29964,29962,29961,29966,29968,29969,29970,29970,29971,29971,29971,29974,29975,29972,29976,29976,29977,29976,29980,29979,29980,29983,29984]} 1. c4 {[%emt 0:00:03]} Nf6 {[%emt 0:00:09]} 2. Nc3 {[%emt 0:00:17]} g6 {[%emt 0:00:10]} 3. d4 {[%emt 0:00:04]} Bg7 {[%emt 0:00:04]} 4. e4 {[%emt 0:00:04]} d6 {[%emt 0:00:04]} 5. f3 {[%emt 0:00:10]} O-O {[%emt 0:00:59]} 6. Nge2 {[%emt 0:00:02]} a6 {[%emt 0:00:15]} 7. Be3 {[%emt 0:00:06]} b5 {[%emt 0:00:44] E81: King's Indian: Sämisch: 6th move deviations (including 6 Be3 c6).} 8. Qd2 {[%emt 0:00:14]} Nbd7 {[%emt 0:00:22]} 9. Bh6 {[%emt 0:00:07]} Nb6 {[%emt 0:09:06] [#] The position is equal.} 10. Ng3 $146 {[%emt 0:00:15]} (10. cxb5 Nc4 11. Qg5 Bxh6 12. Qxh6 axb5 $11) ({Predecessor:} 10. Bxg7 Kxg7 11. Nf4 e5 12. Nfd5 Nfxd5 13. Nxd5 c6 14. Nb4 Bb7 15. Rd1 Qh4+ 16. Qf2 Qxf2+ 17. Kxf2 bxc4 18. dxe5 dxe5 {0-1 (57) Suvorov,L (2292)-Knuedel,T (2171) Willingen 2021}) 10... b4 {[%emt 0:06:00]} (10... bxc4 $11 11. h4 Re8) 11. Nd5 {[%emt 0:01:36]} Nfxd5 {[%emt 0:05:50]} 12. cxd5 {[%emt 0:00:25]} ({White should play} 12. Bxg7 $1 $16 Kxg7 13. cxd5) 12... Bxh6 $11 {[%emt 0:00:58]} 13. Qxh6 {[%emt 0:00:06]} e6 {[%emt 0:02:35]} 14. h4 {[%emt 0:04:05] With the idea h5.} Qf6 {[%emt 0:05:23]} 15. O-O-O {[%emt 0:02:42]} (15. dxe6 $11 Qxd4 16. h5 (16. e7 Re8 $15) 16... Qxb2 17. Rc1) 15... exd5 $15 {[%emt 0:04:13]} 16. h5 {[%emt 0:00:55]} dxe4 {[%emt 0:05:31]} 17. fxe4 {[%emt 0:09:34]} Bg4 {[%emt 0:06:25] [#]} (17... Qg7 $15 18. Qg5 h6) 18. Re1 {[%emt 0:00:15]} (18. Nf5 $1 $11 Kh8 (18... Bxf5 19. exf5) 19. hxg6 Qxg6 20. Qh4 (20. Re1 Bxf5 21. exf5 Qxh6+ 22. Rxh6 Rfe8 $15)) 18... Qxd4 {[%emt 0:10:38]} (18... Qf2 $2 19. Be2 $1 g5 20. Bxg4 $18 (20. Qxg5+ Kh8 $18)) (18... Qg7 $1 $15 19. Qd2 a5) 19. hxg6 $14 {[%emt 0:02:12][%csl Gg6,Gh1][%cal Rh6h7]} Qg7 {[%emt 0:00:22]} 20. gxh7+ $40 {[%emt 0:07:03][%mdl 128] Black needs to defend precisely. Dancing on a razor blade.} (20. Qh4 $1 $16 {[%cal Rh4g4]}) 20... Kh8 $11 {[%emt 0:00:01]} 21. Qxg7+ {[%emt 0:00:15]} Kxg7 {[%emt 0:00:03]} 22. e5 {[%emt 0:00:15]} Nd7 {[%emt 0:08:25]} (22... Kh8 $11) 23. exd6 $14 {[%emt 0:04:33]} cxd6 {[%emt 0:00:01]} 24. Re4 {[%emt 0:00:28][%csl LRb4,LRg4]} Ne5 {[%emt 0:09:11]} 25. Rxb4 {[%emt 0:00:28]} a5 {[%emt 0:02:06]} 26. Rd4 {[%emt 0:00:11]} Rh8 {[%emt 0:04:54]} 27. Nh5+ {[%emt 0:15:52]} Bxh5 {[%emt 0:09:51]} (27... Kf8 $16) 28. Rxh5 $18 {[%emt 0:00:04]} Rxh7 {[%emt 0:02:21]} 29. Rxh7+ {[%emt 0:00:04]} Kxh7 {[%emt 0:00:04]} 30. Rxd6 $16 {[%emt 0:00:04][%mdl 4096] Endgame KRB-KRN} Rc8+ {[%emt 0:00:08] [#]} 31. Kb1 $1 {[%emt 0:07:17]} Rc5 {[%emt 0:00:04]} 32. a3 {[%emt 0:00:14]} (32. a4 $18) 32... Nc4 {[%emt 0:00:25]} 33. Rd3 {[%emt 0:02:45]} Kg7 {[%emt 0:02:25]} 34. Ka2 {[%emt 0:02:41]} Nb6 {[%emt 0:00:04]} (34... Rg5 $16 35. b4 axb4) 35. Rd6 {[%emt 0:00:30]} Nd5 {[%emt 0:00:14]} 36. Bd3 {[%emt 0:00:54]} Ne3 {[%emt 0:02:08]} 37. Be4 {[%emt 0:00:59]} f5 {[%emt 0:00:35] [#]} 38. Rc6 $1 {[%emt 0:00:50]} Rb5 {[%emt 0:02:55]} (38... Re5 39. Bf3) 39. Bf3 {[%emt 0:00:04]} Kf7 {[%emt 0:00:16]} (39... f4 $16 40. Re6 Nc4) 40. Rc3 {[%emt 0:00:00]} Nd5 {[%emt 0:00:00]} 41. Rd3 {[%emt 0:02:55]} Nf6 {[%emt 0:02:18]} 42. a4 {[%emt 0:00:34][%cal Ba3a4,Ba4a5,Ba5a6][%mdl 32]} Rc5 {[%emt 0:04:46]} 43. Ka3 {[%emt 0:01:07]} Rc1 {[%emt 0:02:08]} 44. Rd1 {[%emt 0:02:01]} Rc5 {[%emt 0:00:45]} (44... Rc8 45. b4 axb4+ 46. Kxb4 Rb8+ 47. Kc4 Rc8+ 48. Kd4 Rd8+ 49. Ke5 Rc8) 45. b4 $18 {[%emt 0:00:42]} Rc3+ {[%emt 0:00:06]} 46. Kb2 {[%emt 0:00:03]} axb4 {[%emt 0:00:07]} 47. a5 {[%emt 0:00:03]} Ne4 {[%emt 0:01:59] [#]} 48. a6 $1 {[%emt 0:01:38] Hoping for a7.} Rc7 {[%emt 0:00:04]} 49. Ra1 {[%emt 0:01:35] Threatens to win with a7.} Ra7 {[%emt 0:00:28]} 50. Ra5 {[%emt 0:00:06]} Ke6 $2 {[%emt 0:01:04]} (50... Ke7 51. Be2 (51. Rxf5 Nd6 $14) 51... Ng3) 51. Kb3 {[%emt 0:00:14]} Nd2+ {[%emt 0:02:24]} 52. Kxb4 {[%emt 0:00:07]} Nxf3 {[%emt 0:00:03]} 53. gxf3 {[%emt 0:00:06] KR-KR. White mates.} Kd7 {[%emt 0:00:22]} 54. Kb5 {[%emt 0:00:19]} Kc7 {[%emt 0:02:20]} 55. Kc5 {[%emt 0:00:04]} Kb8 {[%emt 0:03:08]} 56. Kd6 {[%emt 0:00:05]} f4 {[%emt 0:00:24]} 57. Ra4 {[%emt 0:00:05]} Rf7 {[%emt 0:00:13]} 58. Ke5 {[%emt 0:00:57]} Ka7 {[%emt 0:00:07]} 59. Rxf4 {[%emt 0:00:15]} Re7+ {[%emt 0:00:03]} 60. Kd6 {[%emt 0:00:22]} Re3 {[%emt 0:00:02]} 61. Rf8 {[%emt 0:00:10]} Kxa6 {[%emt 0:00:02]} 62. f4 {[%emt 0:00:05][%cal Bf3f4,Bf4f5,Bf5f6,Bf6f7][%mdl 32]} Kb7 {[%emt 0:00:12]} 63. f5 {[%emt 0:00:25]} Rd3+ {[%emt 0:00:05]} 64. Ke6 {[%emt 0:01:10]} Kc7 {[%emt 0:00:23]} 65. Ra8 {[%emt 0:00:52]} Rd6+ {[%emt 0:01:09]} 66. Ke5 {[%emt 0:01:00]} Rd1 {[%emt 0:00:11]} 67. f6 {[%emt 0:00:12]} Re1+ {[%emt 0:00:48]} 68. Kf5 {[%emt 0:00:18]} Kd7 {[%emt 0:00:20]} 69. f7 {[%emt 0:00:37]} Rf1+ {[%emt 0:00:28]} 70. Kg6 {[%emt 0:00:04]} Ke7 {[%emt 0:00:08]} 71. Re8+ {[%emt 0:00:06] Weighted Error Value: White=0.14 (very precise) /Black=0.44} 1-0

[Event "Reykjavik Open 2022"]
[Site "Reykjavik"]
[Date "2022.04.10"]
[Round "7.26"]
[White "Larkin, Vladyslav"]
[Black "Foerster-Yialamas, Lucas"]
[Result "1-0"]
[ECO "B51"]
[WhiteElo "2399"]
[BlackElo "2048"]
[Annotator "TA"]
[PlyCount "69"]
[EventDate "2022.04.06"]
[EventCountry "ISL"]
[SourceTitle "playchess.com"]
[Source "ChessBase"]
[SourceQuality "1"]
[TimeControl "40/5400+30:1800+30"]

{[%evp 9,69,4,29,24,35,30,52,45,53,52,66,59,65,61,60,61,64,16,22,24,52,56,58,37,29,0,0,0,0,0,0,0,0,-6,-16,-3,25,30,33,43,31,-7,102,93,174,155,151,131,148,0,0,0,1247,1239,1230,1218,1185,1178,29992,29993,29997,29998]} 1. e4 {[%emt 0:03:59]} c5 {[%emt 0:00:27]} 2. Nf3 {[%emt 0:00:08]} d6 {[%emt 0:00:06]} 3. Bb5+ {[%emt 0:00:14]} Nd7 {[%emt 0:00:07]} 4. Ba4 {[%emt 0:00:11]} Ngf6 {[%emt 0:01:25]} 5. O-O {[%emt 0:00:16]} a6 {[%emt 0:00:40]} 6. c4 {[%emt 0:00:21] Inhibits b5. B51: Sicilian: Moscow Variation (3 Bb5+) without 3...Bd7.} e5 {[%emt 0:03:25]} 7. Nc3 {[%emt 0:00:33]} g6 {[%emt 0:04:04]} 8. d3 {[%emt 0:00:17] White is slightly better.} Bg7 {[%emt 0:00:45]} 9. a3 {[%emt 0:01:35]} O-O {[%emt 0:01:38]} 10. b4 {[%emt 0:00:28]} b6 {[%emt 0:06:21] [#]} 11. Rb1 $146 {[%emt 0:20:37]} ({Predecessor:} 11. Bc6 Rb8 12. Rb1 Qc7 13. Nd5 Nxd5 14. exd5 Nf6 15. bxc5 bxc5 16. Rxb8 Qxb8 17. Bg5 {0-1 (46) Bartel,M (2648)-Sarana,A (2654) Chess.com INT 2020}) 11... Rb8 {[%emt 0:01:34]} 12. Qc2 {[%emt 0:00:30]} Qc7 {[%emt 0:01:23]} 13. Bxd7 {[%emt 0:07:14] &Bianco is more active.} (13. Rb2 $14 {was preferrable.}) 13... Bxd7 $11 {[%emt 0:01:08]} 14. Bg5 {[%emt 0:00:05]} Be6 {[%emt 0:04:28]} 15. bxc5 {[%emt 0:01:47]} bxc5 {[%emt 0:04:38]} 16. Bxf6 {[%emt 0:00:05]} Bxf6 {[%emt 0:00:11]} 17. Qa4 {[%emt 0:00:09]} Qd7 {[%emt 0:26:08]} 18. Rxb8 {[%emt 0:08:33]} Rxb8 {[%emt 0:00:21]} 19. Qxa6 {[%emt 0:00:07]} Rb3 {[%emt 0:01:28]} 20. Rc1 {[%emt 0:17:29]} Bg4 {[%emt 0:04:51] Strongly threatening ...Bxf3.} 21. Nd2 {[%emt 0:02:39]} Rb2 {[%emt 0:01:16]} 22. Nf1 {[%emt 0:00:11]} Bg5 {[%emt 0:01:35]} 23. Rb1 {[%emt 0:12:15]} ({Not} 23. Ne3 $2 Bxe3 24. Rf1 Bd4 $19) (23. Qa8+ {feels hotter.} Kg7 24. Rb1 Rxb1 25. Nxb1 Be2 26. Nc3) 23... Rxb1 {[%emt 0:01:09]} 24. Nxb1 {[%emt 0:00:05]} Be2 {[%emt 0:00:40]} 25. Qb5 {[%emt 0:06:26]} (25. Nc3 $5 {[%cal Rc3e2]} Bxd3 26. Qa8+ Kg7 27. Qd5 $11) 25... Qa7 {[%emt 0:07:30]} (25... Qxb5 $1 $11 26. cxb5 Bxd3) 26. a4 $1 $16 {[%emt 0:04:18] a5 is the strong threat.} Bxd3 {[%emt 0:09:57]} (26... Bg4 $16) 27. Nc3 $18 {[%emt 0:00:05]} Bxf1 {[%emt 0:03:14]} 28. Kxf1 {[%emt 0:00:06] And now a5 would win.} Bd2 {[%emt 0:00:08] [#]} 29. a5 {[%emt 0:02:40]} Bxc3 $11 {[%emt 0:03:25]} 30. a6 {[%emt 0:00:05]} Qe7 {[%emt 0:03:44][%mdl 8192]} (30... Qc7 $11 31. Qb7 Qa5) 31. Qb8+ $18 {[%emt 0:00:40]} Kg7 {[%emt 0:00:13]} 32. a7 {[%emt 0:00:05]} Qg5 {[%emt 0:00:07] [#]} 33. g3 $1 {[%emt 0:00:37]} ({Stronger than} 33. a8=Q Qc1+ 34. Ke2 Qd2+ 35. Kf3 Qf4+ 36. Ke2 Qd2+ 37. Kf3 Qf4+ 38. Ke2 Qd2+ $11) 33... Qd2 {[%emt 0:01:33]} 34. a8=Q {[%emt 0:00:06]} Bd4 {[%emt 0:00:22]} 35. Qf8+ {[%emt 0:00:05] Weighted Error Value: White=0.13 (very precise) /Black=0.36} 1-0